fUSD/lending_fUSD_20240714
["ID","MTS","AMOUNT","RATE_DAILY","PERIOD"]
[331992011,1720926654341,-151.0,0.00011197,2]
[331992012,1720926654352,-288.005881,0.00011197,2]
[331992013,1720926654361,-151.0,0.00011197,2]
[331992014,1720926654372,-508.100461,0.00011197,2]
[331992015,1720926654382,-508.100461,0.00011197,2]
[331992016,1720926654391,-252.889836,0.00011197,2]
[331992017,1720926654402,-151.0,0.00011197,2]
[331992018,1720926654411,-362.023672,0.00011197,2]
[331992019,1720926654422,-151.0,0.00011197,2]
[331992020,1720926654432,-357.053937,0.00011197,2]
[331992021,1720926654443,-362.023672,0.00011197,2]
[331992022,1720926654452,-357.053937,0.00011197,2]
[331992023,1720926654461,-298.49,0.00011197,2]
[331992024,1720926654471,-298.49,0.00011197,2]
[331992025,1720926654480,-298.49,0.00011197,2]
[331992026,1720926654490,-298.49,0.00011197,2]
[331992027,1720926654503,-198.606109,0.00011197,2]
[331992028,1720926654512,-198.606109,0.00011197,2]
[331992029,1720926654521,-198.606109,0.00011197,2]
[331992030,1720926654532,-627.530595,0.00011197,2]
[331992031,1720926654541,-198.606109,0.00011197,2]
[331992032,1720926654550,-627.530595,0.00011197,2]
[331992033,1720926654559,-627.530595,0.00011197,2]
[331992034,1720926654568,-627.530595,0.00011197,2]
[331992035,1720926654578,-159.285928,0.00011197,2]
[331992036,1720926654588,-159.285928,0.00011197,2]
[331992037,1720926654598,-159.285928,0.00011197,2]
[331992038,1720926654607,-159.285928,0.00011197,2]
[331992039,1720926654616,-677.083683,0.00011197,2]
[331992040,1720926654626,-677.083683,0.00011197,2]
[331992041,1720926654635,-677.083683,0.00011197,2]
[331992042,1720926654645,-677.083683,0.00011197,2]
[331992043,1720926654654,-2887.049223,0.00011197,2]
[331992044,1720926654664,-2887.049221,0.00011197,2]
[331992045,1720926654673,-151.0,0.00011197,2]
[331992046,1720926654682,-151.0,0.00011197,2]
[331992047,1720926654692,-151.0,0.00011197,2]
[331992048,1720926654701,-162.045874,0.00011197,2]
[331992049,1720926654710,-1639.317111,0.00011197,2]
[331992050,1720926654719,-1639.317102,0.00011197,2]
[331992051,1720926654729,-4108.525102,0.00011197,2]
[331992052,1720926654738,-4108.525109,0.00011197,2]
[331992053,1720926654749,-692.67913,0.00011197,2]
[331992054,1720926654758,-692.67913,0.00011197,2]
[331992055,1720926654767,-151.0,0.00011197,2]
[331992056,1720926654777,-231.205054,0.00011197,2]
[331992057,1720926654786,-231.205054,0.00011197,2]
[331992058,1720926654795,-231.205054,0.00011197,2]
[331992059,1720926654804,-231.205054,0.00011197,2]
[331992060,1720926654814,-2418.025176,0.00011197,2]
[331992061,1720926654823,-2418.025171,0.00011197,2]
[331992062,1720926654832,-4263.507115,0.00011197,2]
[331992063,1720926654841,-719.857633,0.00011197,2]
[331992064,1720926654851,-4263.507117,0.00011197,2]
[331992065,1720926654860,-151.0,0.00011197,2]
[331992066,1720926654869,-151.0,0.00011197,2]
[331992067,1720926654879,-15448.966251,0.00011199,2]
[331992068,1720926654889,-28058.70275838,0.00011199,2]
[331992069,1720926654898,-118842.23902669,0.00011199,2]
[331992070,1720926654908,-14860.40706853,0.00011199,2]
[331992071,1720926654917,-32429.89872723,0.00011199,2]
[331992072,1720926654927,-151.746191,0.00011199,2]
[331992073,1720926654936,-151.0,0.00011199,2]
[331992074,1720926654945,-151.0,0.00011199,2]
[331992075,1720926654955,-151.0,0.00011199,2]
[331992076,1720926654964,-151.0,0.00011199,2]
[331992077,1720926654973,-151.0,0.00011199,2]
[331992078,1720926654983,-151.0,0.00011199,2]
[331992079,1720926654993,-151.0,0.00011199,2]
[331992080,1720926655002,-151.0,0.00011199,2]
[331992081,1720926655011,-151.0,0.00011199,2]
[331992082,1720926655021,-151.0,0.00011199,2]
[331992083,1720926655030,-151.0,0.00011199,2]
[331992084,1720926655039,-151.0,0.00011199,2]
[331992085,1720926655048,-151.0,0.00011199,2]
[331992086,1720926655058,-152.151362,0.00011199,2]
[331992087,1720926655067,-151.0,0.00011199,2]
[331992088,1720926655076,-151.0,0.00011199,2]
[331992089,1720926655086,-161.610973,0.00011199,2]
[331992090,1720926655096,-161.610973,0.00011199,2]
[331992091,1720926655105,-161.610973,0.00011199,2]
[331992092,1720926655115,-161.610973,0.00011199,2]
[331992093,1720926655125,-151.0,0.00011199,2]
[331992094,1720926655134,-151.0,0.00011199,2]
[331992095,1720926655143,-151.0,0.00011199,2]
[331992096,1720926655152,-151.0,0.00011199,2]
[331992097,1720926655162,-151.0,0.00011199,2]
[331992098,1720926655176,-151.0,0.00011199,2]
[331992099,1720926655186,-178.944794,0.00011199,2]
[331992100,1720926655195,-178.944794,0.00011199,2]
[331992101,1720926655205,-174.289648,0.00011199,2]
[331992102,1720926655215,-178.944794,0.00011199,2]
[331992103,1720926655224,-178.944794,0.00011199,2]
[331992104,1720926655233,-233.946049,0.00011199,2]
[331992105,1720926655246,-233.946049,0.00011199,2]
[331992106,1720926655256,-233.946049,0.00011199,2]
[331992107,1720926655265,-233.946049,0.00011199,2]
[331992108,1720926655274,-151.0,0.00011199,2]
[331992109,1720926655283,-151.0,0.00011199,2]
[331992110,1720926655292,-151.0,0.00011199,2]
[331992111,1720926655301,-151.0,0.00011199,2]
[331992112,1720926655310,-151.0,0.00011199,2]
[331992113,1720926655320,-151.0,0.00011199,2]
[331992114,1720926655330,-151.0,0.00011199,2]
[331992115,1720926655339,-151.0,0.00011199,2]
[331992116,1720926655348,-175.225905,0.00011199,2]
[331992117,1720926655357,-151.0,0.00011199,2]
[331992118,1720926655366,-151.0,0.00011199,2]
[331992119,1720926655376,-151.0,0.00011199,2]
[331992120,1720926655385,-151.0,0.00011199,2]
[331992121,1720926655394,-151.0,0.00011199,2]
[331992122,1720926655404,-151.0,0.00011199,2]
[331992123,1720926655414,-151.0,0.00011199,2]
[331992124,1720926655423,-151.0,0.00011199,2]
[331992125,1720926655432,-151.0,0.00011199,2]
[331992126,1720926655542,-151.0,0.00011199,2]
[331992127,1720926655564,-151.0,0.00011199,2]
[331992128,1720926655573,-151.0,0.00011199,2]
[331992129,1720926655582,-151.0,0.00011199,2]
[331992130,1720926655592,-151.0,0.00011199,2]
[331992131,1720926655601,-287.278497,0.00011199,2]
[331992132,1720926655610,-151.0,0.00011199,2]
[331992133,1720926655619,-151.0,0.00011199,2]
[331992134,1720926655628,-151.0,0.00011199,2]
[331992135,1720926655637,-151.0,0.00011199,2]
[331992136,1720926655647,-151.0,0.00011199,2]
[331992137,1720926655656,-151.0,0.00011199,2]
[331992138,1720926655665,-151.0,0.00011199,2]
[331992139,1720926655675,-151.0,0.00011199,2]
[331992140,1720926655684,-151.0,0.00011199,2]
[331992141,1720926655693,-151.0,0.00011199,2]
[331992142,1720926655703,-151.0,0.00011199,2]
[331992143,1720926655712,-151.0,0.00011199,2]
[331992144,1720926655721,-151.0,0.00011199,2]
[331992145,1720926655731,-151.0,0.00011199,2]
[331992146,1720926655740,-151.0,0.00011199,2]
[331992147,1720926655750,-151.0,0.00011199,2]
[331992148,1720926655759,-151.0,0.00011199,2]
[331992149,1720926655769,-151.634789,0.00011199,2]
[331992150,1720926655778,-267.8222,0.00011199,2]
[331992151,1720926655787,-267.8222,0.00011199,2]
[331992152,1720926655796,-267.8222,0.00011199,2]
[331992153,1720926655805,-267.8222,0.00011199,2]
[331992154,1720926655814,-267.8222,0.00011199,2]
[331992155,1720926655824,-267.8222,0.00011199,2]
[331992156,1720926655833,-267.8222,0.00011199,2]
[331992157,1720926655842,-267.8222,0.00011199,2]
[331992158,1720926655851,-267.8222,0.00011199,2]
[331992159,1720926655860,-267.8222,0.00011199,2]
[331992160,1720926655870,-267.8222,0.00011199,2]
[331992161,1720926655879,-267.8222,0.00011199,2]
[331992162,1720926655888,-267.8222,0.00011199,2]
[331992163,1720926655897,-267.8222,0.00011199,2]
[331992164,1720926655907,-267.8222,0.00011199,2]
[331992165,1720926655916,-267.8222,0.00011199,2]
[331992166,1720926655926,-151.0,0.00011199,2]
[331992167,1720926655936,-151.0,0.00011199,2]
[331992168,1720926655947,-152.278741,0.00011199,2]
[331992169,1720926655956,-1104.643105,0.00011199,2]
[331992170,1720926655966,-1104.643105,0.00011199,2]
[331992171,1720926655976,-1104.643105,0.00011199,2]
[331992172,1720926655987,-1104.643105,0.00011199,2]
[331992173,1720926655998,-1104.643105,0.00011199,2]
[331992174,1720926656007,-1104.643105,0.00011199,2]
[331992175,1720926656019,-1104.643105,0.00011199,2]
[331992176,1720926656030,-1104.643105,0.00011199,2]
[331992177,1720926656041,-1104.643105,0.00011199,2]
[331992178,1720926656051,-1104.643105,0.00011199,2]
[331992179,1720926656062,-1104.643105,0.00011199,2]
[331992180,1720926656073,-1104.643105,0.00011199,2]
[331992181,1720926656082,-1104.643105,0.00011199,2]
[331992182,1720926656093,-1104.643099,0.00011199,2]
[331992183,1720926656102,-295.768119,0.00011199,2]
[331992184,1720926656112,-295.768119,0.00011199,2]
[331992185,1720926656123,-295.768119,0.00011199,2]
[331992186,1720926656133,-295.768119,0.00011199,2]
[331992187,1720926656142,-295.768119,0.00011199,2]
[331992188,1720926656153,-295.768119,0.00011199,2]
[331992189,1720926656164,-295.768119,0.00011199,2]
[331992190,1720926656178,-295.768119,0.00011199,2]
[331992191,1720926656188,-295.768119,0.00011199,2]
[331992192,1720926656198,-295.768119,0.00011199,2]
[331992193,1720926656209,-850.863931,0.00011199,2]
[331992194,1720926656222,-295.768119,0.00011199,2]
[331992195,1720926656231,-850.863931,0.00011199,2]
[331992196,1720926656242,-295.768119,0.00011199,2]
[331992197,1720926656251,-850.863931,0.00011199,2]
[331992198,1720926656262,-295.768119,0.00011199,2]
[331992199,1720926656272,-850.863931,0.00011199,2]
[331992200,1720926656281,-295.768112,0.00011199,2]
[331992201,1720926656291,-850.863931,0.00011199,2]
[331992202,1720926656301,-850.863931,0.00011199,2]
[331992203,1720926656311,-850.863931,0.00011199,2]
[331992204,1720926656321,-850.863931,0.00011199,2]
[331992205,1720926656331,-850.863931,0.00011199,2]
[331992206,1720926656340,-850.863931,0.00011199,2]
[331992207,1720926656349,-850.863931,0.00011199,2]
[331992208,1720926656359,-850.863931,0.00011199,2]
[331992209,1720926656369,-850.863931,0.00011199,2]
[331992210,1720926656378,-850.863927,0.00011199,2]
[331992211,1720926656388,-152.096567,0.00011199,2]
[331992212,1720926656398,-474.254806,0.00011199,2]
[331992213,1720926656408,-474.254806,0.00011199,2]
[331992214,1720926656418,-474.254806,0.00011199,2]
[331992215,1720926656427,-474.254806,0.00011199,2]
[331992216,1720926656437,-474.254806,0.00011199,2]
[331992217,1720926656446,-474.254806,0.00011199,2]
[331992218,1720926656456,-474.254806,0.00011199,2]
[331992219,1720926656465,-474.254806,0.00011199,2]
[331992220,1720926656475,-474.254806,0.00011199,2]
[331992221,1720926656484,-474.254806,0.00011199,2]
[331992222,1720926656494,-474.254806,0.00011199,2]
[331992223,1720926656503,-474.254806,0.00011199,2]
[331992224,1720926656513,-474.254806,0.00011199,2]
[331992225,1720926656522,-474.254806,0.00011199,2]
[331992226,1720926656532,-474.254806,0.00011199,2]
[331992227,1720926656541,-474.254816,0.00011199,2]
[331992228,1720926656551,-151.0,0.00011199,2]
[331992229,1720926656560,-151.0,0.00011199,2]
[331992230,1720926656570,-151.0,0.00011199,2]
[331992231,1720926656579,-151.0,0.00011199,2]
[331992232,1720926656588,-151.0,0.00011199,2]
[331992233,1720926656598,-151.0,0.00011199,2]
[331992234,1720926656607,-151.0,0.00011199,2]
[331992235,1720926656617,-151.0,0.00011199,2]
[331992236,1720926656626,-151.0,0.00011199,2]
[331992237,1720926656635,-151.0,0.00011199,2]
[331992238,1720926656644,-151.0,0.00011199,2]
[331992239,1720926656653,-151.0,0.00011199,2]
[331992240,1720926656662,-151.0,0.00011199,2]
[331992241,1720926656671,-151.0,0.00011199,2]
[331992242,1720926656680,-151.0,0.00011199,2]
[331992243,1720926656690,-151.0,0.00011199,2]
[331992244,1720926656700,-151.0,0.00011199,2]
[331992245,1720926656709,-151.0,0.00011199,2]
[331992246,1720926656719,-151.0,0.00011199,2]
[331992247,1720926656728,-152.815407,0.00011199,2]
[331992248,1720926656737,-151.0,0.00011199,2]
[331992249,1720926656747,-245.963845,0.00011199,2]
[331992250,1720926656757,-151.0,0.00011199,2]
[331992251,1720926656766,-226.656701,0.00011199,2]
[331992252,1720926656776,-291.437559,0.00011199,2]
[331992253,1720926656785,-151.0,0.00011199,2]
[331992254,1720926656794,-151.0,0.00011199,2]
[331992255,1720926656804,-151.0,0.00011199,2]
[331992256,1720926656813,-151.0,0.00011199,2]
[331992257,1720926656823,-151.0,0.00011199,2]
[331992258,1720926656832,-151.0,0.00011199,2]
[331992259,1720926656841,-332.980277,0.00011199,2]
[331992260,1720926656851,-332.980277,0.00011199,2]
[331992261,1720926656860,-332.980277,0.00011199,2]
[331992262,1720926656869,-332.980277,0.00011199,2]
[331992263,1720926656879,-332.980277,0.00011199,2]
[331992264,1720926656888,-332.980277,0.00011199,2]
[331992265,1720926656898,-332.980277,0.00011199,2]
[331992266,1720926656907,-151.0,0.00011199,2]
[331992267,1720926656916,-151.0,0.00011199,2]
[331992268,1720926656926,-332.980277,0.00011199,2]
[331992269,1720926656935,-151.0,0.00011199,2]
[331992270,1720926656944,-332.980277,0.00011199,2]
[331992271,1720926656953,-151.0,0.00011199,2]
[331992272,1720926656963,-151.0,0.00011199,2]
[331992273,1720926656972,-332.980277,0.00011199,2]
[331992274,1720926656981,-151.0,0.00011199,2]
[331992275,1720926656990,-332.980277,0.00011199,2]
[331992276,1720926657000,-332.980277,0.00011199,2]
[331992277,1720926657009,-332.980277,0.00011199,2]
[331992278,1720926657018,-332.980279,0.00011199,2]
[331992279,1720926657027,-280.683438,0.00011199,2]
[331992280,1720926657036,-175.481823,0.00011199,2]
[331992281,1720926657046,-175.481823,0.00011199,2]
[331992282,1720926657055,-175.481823,0.00011199,2]
[331992283,1720926657064,-175.481823,0.00011199,2]
[331992284,1720926657073,-175.481823,0.00011199,2]
[331992285,1720926657083,-175.481823,0.00011199,2]
[331992286,1720926657092,-154.235063,0.00011199,2]
[331992287,1720926657102,-154.235063,0.00011199,2]
[331992288,1720926657111,-154.235063,0.00011199,2]
[331992289,1720926657120,-175.481823,0.00011199,2]
[331992290,1720926657129,-154.235063,0.00011199,2]
[331992291,1720926657141,-154.235063,0.00011199,2]
[331992292,1720926657151,-154.235063,0.00011199,2]
[331992293,1720926657162,-175.481823,0.00011199,2]
[331992294,1720926657175,-154.235063,0.00011199,2]
[331992295,1720926657185,-175.481823,0.00011199,2]
[331992296,1720926657194,-175.481823,0.00011199,2]
[331992297,1720926657204,-175.481823,0.00011199,2]
[331992298,1720926657215,-175.481827,0.00011199,2]
[331992299,1720926657224,-154.235063,0.00011199,2]
[331992300,1720926657233,-154.235063,0.00011199,2]
[331992301,1720926657244,-154.235063,0.00011199,2]
[331992302,1720926657254,-154.235063,0.00011199,2]
[331992303,1720926657263,-154.235063,0.00011199,2]
[331992304,1720926657273,-154.235063,0.00011199,2]
[331992305,1720926657283,-154.235057,0.00011199,2]
[331992306,1720926657293,-316.542648,0.00011199,2]
[331992307,1720926657303,-316.542648,0.00011199,2]
[331992308,1720926657313,-316.542648,0.00011199,2]
[331992309,1720926657322,-316.542648,0.00011199,2]
[331992310,1720926657333,-316.542648,0.00011199,2]
[331992311,1720926657342,-316.542648,0.00011199,2]
[331992312,1720926657352,-316.542648,0.00011199,2]
[331992313,1720926657362,-316.542648,0.00011199,2]
[331992314,1720926657372,-316.542648,0.00011199,2]
[331992315,1720926657381,-316.542648,0.00011199,2]
[331992316,1720926657391,-316.542648,0.00011199,2]
[331992317,1720926657401,-316.542648,0.00011199,2]
[331992318,1720926657411,-316.542648,0.00011199,2]
[331992319,1720926657420,-316.542653,0.00011199,2]
[331992320,1720926657430,-268.508205,0.00011199,2]
[331992321,1720926657441,-268.508205,0.00011199,2]
[331992322,1720926657450,-268.508205,0.00011199,2]
[331992323,1720926657460,-268.508205,0.00011199,2]
[331992324,1720926657470,-268.508205,0.00011199,2]
[331992325,1720926657480,-268.508205,0.00011199,2]
[331992326,1720926657489,-268.508205,0.00011199,2]
[331992327,1720926657499,-268.508205,0.00011199,2]
[331992328,1720926657510,-268.508205,0.00011199,2]
[331992329,1720926657519,-268.508205,0.00011199,2]
[331992330,1720926657529,-268.508205,0.00011199,2]
[331992331,1720926657538,-268.508205,0.00011199,2]
[331992332,1720926657548,-268.508205,0.00011199,2]
[331992333,1720926657557,-268.508212,0.00011199,2]
[331992334,1720926657567,-151.0,0.00011199,2]
[331992335,1720926657576,-151.0,0.00011199,2]
[331992336,1720926657585,-151.0,0.00011199,2]
[331992337,1720926657595,-151.0,0.00011199,2]
[331992338,1720926657606,-151.0,0.00011199,2]
[331992339,1720926657615,-151.0,0.00011199,2]
[331992340,1720926657625,-151.809565,0.00011199,2]
[331992341,1720926657635,-151.0,0.00011199,2]
[331992342,1720926657645,-151.0,0.00011199,2]
[331992343,1720926657655,-151.0,0.00011199,2]
[331992344,1720926657664,-151.0,0.00011199,2]
[331992345,1720926657674,-297.235775,0.00011199,2]
[331992346,1720926657683,-288.005881,0.00011199,2]
[331992347,1720926657693,-288.005881,0.00011199,2]
[331992348,1720926657703,-151.0,0.00011199,2]
[331992349,1720926657712,-288.005881,0.00011199,2]
[331992350,1720926657721,-264.099029,0.00011199,2]
[331992351,1720926657731,-288.005881,0.00011199,2]
[331992352,1720926657740,-288.005881,0.00011199,2]
[331992353,1720926657750,-288.005881,0.00011199,2]
[331992354,1720926657759,-288.005881,0.00011199,2]
[331992355,1720926657769,-288.005881,0.00011199,2]
[331992356,1720926657778,-288.005881,0.00011199,2]
[331992357,1720926657787,-288.005885,0.00011199,2]
[331992358,1720926657797,-151.0,0.00011199,2]
[331992359,1720926657806,-151.0,0.00011199,2]
[331992360,1720926657815,-151.0,0.00011199,2]
[331992361,1720926657825,-151.0,0.00011199,2]
[331992362,1720926657834,-151.0,0.00011199,2]
[331992363,1720926657844,-508.100461,0.00011199,2]
[331992364,1720926657855,-508.100461,0.00011199,2]
[331992365,1720926657866,-508.100461,0.00011199,2]
[331992366,1720926657875,-508.100461,0.00011199,2]
[331992367,1720926657886,-508.100461,0.00011199,2]
[331992368,1720926657896,-508.100461,0.00011199,2]
[331992369,1720926657906,-508.100461,0.00011199,2]
[331992370,1720926657915,-508.100461,0.00011199,2]
[331992371,1720926657925,-508.100461,0.00011199,2]
[331992372,1720926657935,-508.100461,0.00011199,2]
[331992373,1720926657945,-508.100461,0.00011199,2]
[331992374,1720926657955,-508.100455,0.00011199,2]
[331992375,1720926657966,-151.0,0.00011199,2]
[331992376,1720926657977,-151.0,0.00011199,2]
[331992377,1720926657987,-151.0,0.00011199,2]
[331992378,1720926657999,-151.0,0.00011199,2]
[331992379,1720926658009,-239.797288,0.00011199,2]
[331992380,1720926658019,-362.023672,0.00011199,2]
[331992381,1720926658031,-362.023672,0.00011199,2]
[331992382,1720926658040,-151.0,0.00011199,2]
[331992383,1720926658050,-362.023672,0.00011199,2]
[331992384,1720926658059,-151.0,0.00011199,2]
[331992385,1720926658069,-362.023672,0.00011199,2]
[331992386,1720926658079,-151.0,0.00011199,2]
[331992387,1720926658088,-362.023672,0.00011199,2]
[331992388,1720926658098,-151.0,0.00011199,2]
[331992389,1720926658107,-151.0,0.00011199,2]
[331992390,1720926658117,-151.0,0.00011199,2]
[331992391,1720926658127,-357.053937,0.00011199,2]
[331992392,1720926658137,-357.053937,0.00011199,2]
[331992393,1720926658147,-357.053937,0.00011199,2]
[331992394,1720926658156,-357.053937,0.00011199,2]
[331992395,1720926658167,-362.023672,0.00011199,2]
[331992396,1720926658179,-357.053937,0.00011199,2]
[331992397,1720926658189,-362.023672,0.00011199,2]
[331992398,1720926658199,-362.023672,0.00011199,2]
[331992399,1720926658209,-362.023672,0.00011199,2]
[331992400,1720926658219,-362.023662,0.00011199,2]
[331992401,1720926658228,-357.053937,0.00011199,2]
[331992402,1720926658238,-357.053937,0.00011199,2]
[331992403,1720926658250,-357.053937,0.00011199,2]
[331992404,1720926658260,-357.053937,0.00011199,2]
[331992405,1720926658270,-357.053938,0.00011199,2]
[331992406,1720926658279,-298.49,0.00011199,2]
[331992407,1720926658289,-298.49,0.00011199,2]
[331992408,1720926658298,-198.606109,0.00011199,2]
[331992409,1720926658308,-198.606112,0.00011199,2]
[331992410,1720926658318,-627.530595,0.00011199,2]
[331992411,1720926658328,-627.530594,0.00011199,2]
[331992412,1720926658340,-159.285928,0.00011199,2]
[331992413,1720926658350,-159.285922,0.00011199,2]
[331992414,1720926658359,-677.083683,0.00011199,2]
[331992415,1720926658369,-677.08368,0.00011199,2]
[331992416,1720926658379,-151.0,0.00011199,2]
[331992417,1720926658388,-231.205054,0.00011199,2]
[331992418,1720926658398,-231.205052,0.00011199,2]
[331992419,1720926658408,-342.18189299,0.00011362,2]
[331992420,1720926658418,-358.52,0.00011534,2]
[331992421,1720926658428,-171.39,0.00011625,2]
[331992422,1720926658438,-418.26,0.00011695,2]
[331992423,1720926658447,-11029.86608714,0.000118,2]
[331992424,1720926658457,-500.0,0.00011834,2]
[331992425,1720926658467,-151.0,0.00011834,2]
[331992426,1720926658477,-151.0,0.00011834,2]
[331992427,1720926658486,-234.39324,0.00011834,2]
[331992428,1720926658495,-176.36136613,0.00011866,2]
[331992429,1720926658508,-151.0,0.00011998,2]
[331992430,1720926658518,-5572.0,0.00011998,2]
[331992431,1720926658528,-4981.13,0.00012,2]
[331992432,1720926658537,-151.0,0.00012,2]
[331992433,1720926658546,-173.48,0.00012033,2]
[331992434,1720926658556,-539.9,0.00012055,2]
[331992435,1720926658565,-1000.0,0.00012214,2]
[331992436,1720926658575,-229.81239541,0.00012327,2]
[331992437,1720926658585,-331.46,0.00012329,2]
[331992438,1720926658594,-300.0,0.00012343,2]
[331992439,1720926658604,-3906.06135006,0.0001251,2]
[331992440,1720926658613,-882.59216232,0.0001259,2]
[331992441,1720926658623,-500.0,0.00012656,2]
[331992442,1720926658632,-500.0,0.00012656,2]
[331992443,1720926658641,-465.71,0.00012708,2]
[331992444,1720926658652,-176.36136613,0.00012732,2]
[331992445,1720926658661,-151.0,0.000129,2]
[331992446,1720926658671,-235.344986,0.000129,2]
[331992447,1720926658680,-151.0,0.000129,2]
[331992448,1720926658690,-171.39,0.00012916,2]
[331992449,1720926658700,-1063.41,0.00012949,2]
[331992450,1720926658709,-183.96,0.00012949,2]
[331992451,1720926658718,-1250.0,0.00013,2]
[331992452,1720926658728,-162.17,0.00013,2]
[331992453,1720926658737,-151.0,0.00013151,2]
[331992454,1720926658747,-268.574504,0.00013219,2]
[331992455,1720926658757,-642.057057,0.00013219,2]
[331992456,1720926658766,-161.59307,0.00013219,2]
[331992457,1720926658775,-164.196944,0.00013219,2]
[331992458,1720926658784,-170.979054,0.00013219,2]
[331992459,1720926658793,-151.070622,0.00013219,2]
[331992460,1720926658803,-12007.219599,0.00013219,2]
[331992461,1720926658812,-174.90357,0.00013219,2]
[331992462,1720926658822,-222.333863,0.00013219,2]
[331992463,1720926658832,-5678.343345,0.00013219,2]
[331992464,1720926658841,-412.6184,0.00013219,2]
[331992465,1720926658851,-279.878118,0.00013219,2]
[331992466,1720926658860,-203.613466,0.00013219,2]
[331992467,1720926658869,-284.909346,0.00013219,2]
[331992468,1720926658879,-3987.249233,0.00013219,2]
[331992469,1720926658890,-177.786747,0.00013219,2]
[331992470,1720926658900,-176.154772,0.00013219,2]
[331992471,1720926658911,-255.171724,0.00013219,2]
[331992472,1720926658921,-488.522963,0.00013219,2]
[331992473,1720926658930,-267.741001,0.00013219,2]
[331992474,1720926658939,-171.200428,0.00013219,2]
[331992475,1720926658949,-181.684392,0.00013219,2]
[331992476,1720926658958,-532.907782,0.00013219,2]
[331992477,1720926658968,-155.208721,0.00013219,2]
[331992478,1720926658977,-178.614439,0.00013219,2]
[331992479,1720926658987,-179.27189,0.00013219,2]
[331992480,1720926658997,-198.434082,0.00013219,2]
[331992481,1720926659006,-535.482001,0.00013219,2]
[331992482,1720926659135,-185.80484,0.00013219,2]
[331992483,1720926659160,-177.897855,0.00013219,2]
[331992484,1720926659173,-253.298941,0.00013219,2]
[331992485,1720926659184,-202.639152,0.00013219,2]
[331992486,1720926659195,-1559.77932,0.00013219,2]
[331992487,1720926659207,-304.109246,0.00013219,2]
[331992488,1720926659218,-1107.629452,0.00013219,2]
[331992489,1720926659229,-211.975705,0.00013219,2]
[331992490,1720926659239,-152.790958,0.00013219,2]
[331992491,1720926659250,-187.078072,0.00013219,2]
[331992492,1720926659259,-187.453998,0.00013219,2]
[331992493,1720926659268,-187.961003,0.00013219,2]
[331992494,1720926659277,-1031.928922,0.00013219,2]
[331992495,1720926659286,-156.855901,0.00013219,2]
[331992496,1720926659295,-161.860684,0.00013219,2]
[331992497,1720926659304,-541.87221,0.00013219,2]
[331992498,1720926659314,-1062.920744,0.00013219,2]
[331992499,1720926659323,-151.0,0.00013219,2]
[331992500,1720926659332,-151.0,0.00013219,2]
[331992501,1720926659342,-151.0,0.00013219,2]
[331992502,1720926659351,-151.0,0.00013219,2]
[331992503,1720926659360,-151.0,0.00013219,2]
[331992504,1720926659370,-151.0,0.00013219,2]
[331992505,1720926659379,-154.82843,0.00013219,2]
[331992506,1720926659389,-161.610973,0.00013219,2]
[331992507,1720926659399,-161.610973,0.00013219,2]
[331992508,1720926659408,-299.507012,0.00013219,2]
[331992509,1720926659418,-151.0,0.00013219,2]
[331992510,1720926659428,-151.0,0.00013219,2]